[Event "Titled Tuesday Blitz June 07 Late 2022"]
[White "Yurasova, Daria"]
[Black "Uskov, Artem"]
[WhiteFideId "34146919"]
[BlackFideId "34254854"]
[WhiteElo "2021"]
[BlackElo "2335"]
[Result "1/2-1/2"]
[Round "10"]
[TimeControl "180+1"]
[Date "2022.06.07"]
[WhiteClock "0:00:08"]
[BlackClock "0:00:10"]

1. e4 {[%clk 0:03:00]}  Nf6 {[%clk 0:03:00]} 2. e5 {[%clk 0:02:58]}  Nd5 {[%clk 0:03:01]} 3. d4 {[%clk 0:02:59]}  d6 {[%clk 0:03:00]} 4. Bc4 {[%clk 0:02:59]}  Nb6 {[%clk 0:02:55]} 5. Bb3 {[%clk 0:02:56]}  dxe5 {[%clk 0:02:54]} 6. Qh5 {[%clk 0:02:51]}  e6 {[%clk 0:02:53]} 7. dxe5 {[%clk 0:02:48]}  a5 {[%clk 0:02:50]} 8. a4 {[%clk 0:02:47]}  Nc6 {[%clk 0:02:50]} 9. Nf3 {[%clk 0:02:45]}  Nd4 {[%clk 0:02:48]} 10. Nxd4 {[%clk 0:02:43]}  Qxd4 {[%clk 0:02:46]} 11. O-O {[%clk 0:02:42]}  g6 {[%clk 0:02:46]} 12. Qe2 {[%clk 0:02:36]}  Bg7 {[%clk 0:02:42]} 13. Re1 {[%clk 0:01:58]}  O-O {[%clk 0:02:31]} 14. Nc3 {[%clk 0:01:55]}  Bd7 {[%clk 0:02:30]} 15. Bg5 {[%clk 0:01:49]}  h6 {[%clk 0:02:06]} 16. Rad1 {[%clk 0:01:26]}  Qxe5 {[%clk 0:01:51]} 17. Qxe5 {[%clk 0:00:59]}  Bxe5 {[%clk 0:01:52]} 18. Rxe5 {[%clk 0:01:00]}  hxg5 {[%clk 0:01:50]} 19. Rxg5 {[%clk 0:01:00]}  Bc6 {[%clk 0:01:50]} 20. Rg3 {[%clk 0:00:45]}  Rad8 {[%clk 0:01:46]} 21. Rgd3 {[%clk 0:00:45]}  Rxd3 {[%clk 0:01:46]} 22. Rxd3 {[%clk 0:00:46]}  Nd7 {[%clk 0:01:46]} 23. Nb5 {[%clk 0:00:33]}  Nc5 {[%clk 0:01:34]} 24. Rc3 {[%clk 0:00:25]}  Ne4 {[%clk 0:01:29]} 25. Rd3 {[%clk 0:00:23]}  Bxb5 {[%clk 0:01:26]} 26. axb5 {[%clk 0:00:23]}  Nc5 {[%clk 0:01:27]} 27. Rd1 {[%clk 0:00:18]}  Kg7 {[%clk 0:01:21]} 28. Bc4 {[%clk 0:00:16]}  Kf6 {[%clk 0:01:20]} 29. f3 {[%clk 0:00:17]}  Ke7 {[%clk 0:01:18]} 30. Kf2 {[%clk 0:00:17]}  b6 {[%clk 0:01:18]} 31. c3 {[%clk 0:00:16]}  Na4 {[%clk 0:01:18]} 32. Rd2 {[%clk 0:00:13]}  Rd8 {[%clk 0:01:18]} 33. Re2 {[%clk 0:00:12]}  Kf6 {[%clk 0:01:14]} 34. Bb3 {[%clk 0:00:10]}  Nc5 {[%clk 0:01:12]} 35. Bc2 {[%clk 0:00:10]}  a4 {[%clk 0:01:13]} 36. g4 {[%clk 0:00:10]}  Ra8 {[%clk 0:01:13]} 37. h4 {[%clk 0:00:09]}  a3 {[%clk 0:01:11]} 38. bxa3 {[%clk 0:00:10]}  Rxa3 {[%clk 0:01:12]} 39. c4 {[%clk 0:00:11]}  Rc3 {[%clk 0:01:12]} 40. g5+ {[%clk 0:00:10]}  Ke7 {[%clk 0:01:11]} 41. Be4 {[%clk 0:00:09]}  Rxc4 {[%clk 0:01:11]} 42. Bc6 {[%clk 0:00:10]}  Rxh4 {[%clk 0:01:10]} 43. Ra2 {[%clk 0:00:11]}  Ra4 {[%clk 0:01:08]} 44. Rd2 {[%clk 0:00:11]}  Ra3 {[%clk 0:01:07]} 45. Kg3 {[%clk 0:00:10]}  f6 {[%clk 0:01:05]} 46. gxf6+ {[%clk 0:00:09]}  Kxf6 {[%clk 0:01:05]} 47. Rd8 {[%clk 0:00:10]}  Nd3 {[%clk 0:00:59]} 48. Rd7 {[%clk 0:00:08]}  Ra7 {[%clk 0:00:56]} 49. Rxd3 {[%clk 0:00:08]}  g5 {[%clk 0:00:53]} 50. Rd8 {[%clk 0:00:06]}  Ra1 {[%clk 0:00:49]} 51. Rf8+ {[%clk 0:00:06]}  Ke5 {[%clk 0:00:49]} 52. Rf7 {[%clk 0:00:06]}  Kd6 {[%clk 0:00:47]} 53. Rd7+ {[%clk 0:00:05]}  Ke5 {[%clk 0:00:46]} 54. Rxc7 {[%clk 0:00:06]}  Rg1+ {[%clk 0:00:46]} 55. Kf2 {[%clk 0:00:06]}  Rb1 {[%clk 0:00:47]} 56. Rb7 {[%clk 0:00:06]}  Kf4 {[%clk 0:00:46]} 57. Rf7+ {[%clk 0:00:06]}  Ke5 {[%clk 0:00:46]} 58. Kg3 {[%clk 0:00:05]}  Rg1+ {[%clk 0:00:45]} 59. Kh2 {[%clk 0:00:05]}  Rb1 {[%clk 0:00:46]} 60. Rb7 {[%clk 0:00:06]}  Kf4 {[%clk 0:00:46]} 61. Rxb6 {[%clk 0:00:06]}  g4 {[%clk 0:00:42]} 62. fxg4 {[%clk 0:00:06]}  Kxg4 {[%clk 0:00:42]} 63. Rb8 {[%clk 0:00:05]}  Rb2+ {[%clk 0:00:42]} 64. Kg1 {[%clk 0:00:06]}  e5 {[%clk 0:00:42]} 65. Rg8+ {[%clk 0:00:06]}  Kf4 {[%clk 0:00:41]} 66. Rf8+ {[%clk 0:00:06]}  Ke3 {[%clk 0:00:41]} 67. Re8 {[%clk 0:00:03]}  Kd4 {[%clk 0:00:40]} 68. Rd8+ {[%clk 0:00:03]}  Ke3 {[%clk 0:00:41]} 69. Re8 {[%clk 0:00:04]}  Kd4 {[%clk 0:00:40]} 70. Kf1 {[%clk 0:00:04]}  Rb1+ {[%clk 0:00:18]} 71. Ke2 {[%clk 0:00:04]}  Rb2+ {[%clk 0:00:18]} 72. Kd1 {[%clk 0:00:05]}  Kd3 {[%clk 0:00:15]} 73. Kc1 {[%clk 0:00:05]}  Rc2+ {[%clk 0:00:15]} 74. Kb1 {[%clk 0:00:05]}  Rc5 {[%clk 0:00:14]} 75. Bd7 {[%clk 0:00:04]}  Rd5 {[%clk 0:00:13]} 76. Bc6 {[%clk 0:00:03]}  Rc5 {[%clk 0:00:13]} 77. Ka2 {[%clk 0:00:04]}  Kc3 {[%clk 0:00:10]} 78. Kb1 {[%clk 0:00:02]}  Kd4 {[%clk 0:00:09]} 79. Rd8+ {[%clk 0:00:03]}  Kc4 {[%clk 0:00:08]} 80. Be8 {[%clk 0:00:02]}  e4 {[%clk 0:00:08]} 81. Rd6 {[%clk 0:00:02]}  Re5 {[%clk 0:00:06]} 82. Bf7+ {[%clk 0:00:02]}  Kxb5 {[%clk 0:00:05]} 83. Rd5+ {[%clk 0:00:02]}  Rxd5 {[%clk 0:00:06]} 84. Bxd5 {[%clk 0:00:03]}  e3 {[%clk 0:00:07]} 85. Bf3 {[%clk 0:00:04]}  Kc5 {[%clk 0:00:07]} 86. Kc1 {[%clk 0:00:05]}  Kd4 {[%clk 0:00:08]} 87. Kd1 {[%clk 0:00:06]}  Ke5 {[%clk 0:00:09]} 88. Ke1 {[%clk 0:00:06]}  Kf4 {[%clk 0:00:10]} 89. Ke2 {[%clk 0:00:07]}  Kg3 {[%clk 0:00:10]} 90. Kxe3 {[%clk 0:00:08]} 1/2-1/2


[Site "https://www.chess.com"]

[Event "Titled Tuesday Blitz June 07 Late 2022"]
[White "Adewumi, Tanitoluwa"]
[Black "Leiva, Gianmarco"]
[WhiteFideId "30966396"]
[BlackFideId "3804399"]
[WhiteElo "2553"]
[BlackElo "2323"]
[Result "1-0"]
[Round "11"]
[TimeControl "180+1"]
[Date "2022.06.07"]
[WhiteClock "0:00:13"]
[BlackClock "0:00:05"]

1. e4 {[%clk 0:03:00]}  c5 {[%clk 0:02:59]} 2. Nf3 {[%clk 0:02:58]}  d6 {[%clk 0:02:59]} 3. Bb5+ {[%clk 0:02:58]}  Nd7 {[%clk 0:02:59]} 4. c3 {[%clk 0:02:58]}  Nf6 {[%clk 0:03:00]} 5. Bd3 {[%clk 0:02:59]}  a6 {[%clk 0:02:47]} 6. Bc2 {[%clk 0:02:58]}  b5 {[%clk 0:02:46]} 7. d4 {[%clk 0:02:58]}  Bb7 {[%clk 0:02:45]} 8. Nbd2 {[%clk 0:02:58]}  Qc7 {[%clk 0:02:42]} 9. O-O {[%clk 0:02:57]}  Rc8 {[%clk 0:02:42]} 10. Bd3 {[%clk 0:02:48]}  e5 {[%clk 0:02:42]} 11. Re1 {[%clk 0:02:48]}  g6 {[%clk 0:02:43]} 12. d5 {[%clk 0:02:44]}  Bg7 {[%clk 0:02:40]} 13. Nf1 {[%clk 0:02:44]}  c4 {[%clk 0:02:31]} 14. Bc2 {[%clk 0:02:43]}  O-O {[%clk 0:02:22]} 15. h4 {[%clk 0:02:43]}  a5 {[%clk 0:02:06]} 16. Ng3 {[%clk 0:02:40]}  b4 {[%clk 0:02:03]} 17. h5 {[%clk 0:02:37]}  Nc5 {[%clk 0:01:59]} 18. h6 {[%clk 0:02:32]}  Bh8 {[%clk 0:01:59]} 19. Bd2 {[%clk 0:02:28]}  Nd3 {[%clk 0:01:32]} 20. Bxd3 {[%clk 0:02:26]}  cxd3 {[%clk 0:01:32]} 21. Rc1 {[%clk 0:02:20]}  Qb6 {[%clk 0:01:33]} 22. c4 {[%clk 0:02:07]}  Ng4 {[%clk 0:01:30]} 23. Be3 {[%clk 0:01:58]}  Nxe3 {[%clk 0:01:30]} 24. Rxe3 {[%clk 0:01:59]}  f5 {[%clk 0:00:55]} 25. exf5 {[%clk 0:01:41]}  gxf5 {[%clk 0:00:56]} 26. Ng5 {[%clk 0:01:42]}  f4 {[%clk 0:00:22]} 27. Qg4 {[%clk 0:01:41]}  Rf6 {[%clk 0:00:19]} 28. Rf3 {[%clk 0:01:22]}  Rg6 {[%clk 0:00:06]} 29. Nf5 {[%clk 0:01:21]}  Qd8 {[%clk 0:00:06]} 30. c5 {[%clk 0:00:27]}  Rxg5 {[%clk 0:00:06]} 31. Qh3 {[%clk 0:00:26]}  Qd7 {[%clk 0:00:07]} 32. Nxd6 {[%clk 0:00:14]}  Qxh3 {[%clk 0:00:07]} 33. Rxh3 {[%clk 0:00:14]}  d2 {[%clk 0:00:08]} 34. Rf1 {[%clk 0:00:12]}  Rxc5 {[%clk 0:00:08]} 35. Nxb7 {[%clk 0:00:12]}  Rc1 {[%clk 0:00:07]} 36. Rd3 {[%clk 0:00:12]}  Rxf1+ {[%clk 0:00:04]} 37. Kxf1 {[%clk 0:00:13]}  e4 {[%clk 0:00:05]} 38. Rxd2 {[%clk 0:00:13]}  e3 {[%clk 0:00:04]} 39. fxe3 {[%clk 0:00:14]}  fxe3 {[%clk 0:00:05]} 40. Rd3 {[%clk 0:00:15]}  Kf7 {[%clk 0:00:04]} 41. d6 {[%clk 0:00:14]}  Bxb2 {[%clk 0:00:03]} 42. d7 {[%clk 0:00:14]}  Bf6 {[%clk 0:00:04]} 43. d8=Q {[%clk 0:00:09]}  Bxd8 {[%clk 0:00:04]} 44. Nxd8+ {[%clk 0:00:10]}  Kg6 {[%clk 0:00:04]} 45. Rxe3 {[%clk 0:00:09]}  Kxh6 {[%clk 0:00:04]} 46. Nf7+ {[%clk 0:00:09]}  Kh5 {[%clk 0:00:05]} 47. Nxg5 {[%clk 0:00:10]}  Kxg5 {[%clk 0:00:05]} 48. Re5+ {[%clk 0:00:11]}  Kf4 {[%clk 0:00:06]} 49. Rxa5 {[%clk 0:00:11]}  b3 {[%clk 0:00:06]} 50. axb3 {[%clk 0:00:12]}  Ke3 {[%clk 0:00:05]} 51. b4 {[%clk 0:00:13]}  Kd3 {[%clk 0:00:05]} 52. Rc5 {[%clk 0:00:13]}  Kd4 {[%clk 0:00:05]} 53. Rc8 {[%clk 0:00:13]} 1-0


[Site "https://www.chess.com"]

[Event "Titled Tuesday Blitz June 07 Late 2022"]
[White "Badelka, Olga"]
[Black "Domingo Nunez, Ruben"]
[WhiteFideId "13509926"]
[BlackFideId "22245570"]
[WhiteElo "2165"]
[BlackElo "2376"]
[Result "0-1"]
[Round "11"]
[TimeControl "180+1"]
[Date "2022.06.07"]
[WhiteClock "0:00:01"]
[BlackClock "0:00:03"]

1. c4 {[%clk 0:03:00]}  g6 {[%clk 0:02:57]} 2. Nc3 {[%clk 0:02:59]}  Bg7 {[%clk 0:02:58]} 3. g3 {[%clk 0:02:58]}  Nf6 {[%clk 0:02:56]} 4. Bg2 {[%clk 0:02:59]}  O-O {[%clk 0:02:57]} 5. d4 {[%clk 0:02:57]}  d6 {[%clk 0:02:57]} 6. Nf3 {[%clk 0:02:57]}  Nbd7 {[%clk 0:02:58]} 7. O-O {[%clk 0:02:57]}  c5 {[%clk 0:02:59]} 8. d5 {[%clk 0:02:52]}  Rb8 {[%clk 0:02:59]} 9. e4 {[%clk 0:02:39]}  a6 {[%clk 0:02:57]} 10. a4 {[%clk 0:02:39]}  Ne8 {[%clk 0:02:55]} 11. Re1 {[%clk 0:02:33]}  Nc7 {[%clk 0:02:53]} 12. a5 {[%clk 0:02:00]}  b5 {[%clk 0:02:53]} 13. axb6 {[%clk 0:01:58]}  Nxb6 {[%clk 0:02:54]} 14. Qd3 {[%clk 0:01:56]}  e5 {[%clk 0:02:49]} 15. dxe6 {[%clk 0:01:33]}  Bxe6 {[%clk 0:02:45]} 16. b3 {[%clk 0:01:33]}  Nd7 {[%clk 0:02:36]} 17. Rb1 {[%clk 0:01:27]}  Bg4 {[%clk 0:02:28]} 18. Bf4 {[%clk 0:01:23]}  Bxf3 {[%clk 0:02:18]} 19. Qxf3 {[%clk 0:01:22]}  Ne5 {[%clk 0:02:19]} 20. Qe3 {[%clk 0:01:05]}  Ne6 {[%clk 0:02:18]} 21. Nd5 {[%clk 0:01:02]}  Nd4 {[%clk 0:02:14]} 22. Rec1 {[%clk 0:00:45]}  Ng4 {[%clk 0:01:43]} 23. Qd3 {[%clk 0:00:45]}  Ne5 {[%clk 0:01:36]} 24. Qe3 {[%clk 0:00:41]}  Re8 {[%clk 0:01:07]} 25. h3 {[%clk 0:00:41]}  h6 {[%clk 0:01:01]} 26. Kh1 {[%clk 0:00:33]}  Kh7 {[%clk 0:00:57]} 27. b4 {[%clk 0:00:31]}  g5 {[%clk 0:00:31]} 28. Bxe5 {[%clk 0:00:31]}  Rxe5 {[%clk 0:00:32]} 29. f4 {[%clk 0:00:22]}  Re8 {[%clk 0:00:31]} 30. e5 {[%clk 0:00:19]}  dxe5 {[%clk 0:00:29]} 31. fxg5 {[%clk 0:00:16]}  Qxg5 {[%clk 0:00:19]} 32. bxc5 {[%clk 0:00:10]}  Rxb1 {[%clk 0:00:13]} 33. Rxb1 {[%clk 0:00:09]}  Qg6 {[%clk 0:00:05]} 34. Rf1 {[%clk 0:00:08]}  Nf5 {[%clk 0:00:05]} 35. Qa3 {[%clk 0:00:06]}  Nxg3+ {[%clk 0:00:05]} 36. Kh2 {[%clk 0:00:06]}  Nxf1+ {[%clk 0:00:05]} 37. Bxf1 {[%clk 0:00:06]}  e4 {[%clk 0:00:06]} 38. Bg2 {[%clk 0:00:05]}  Be5+ {[%clk 0:00:06]} 39. Kh1 {[%clk 0:00:05]}  Rg8 {[%clk 0:00:06]} 40. Qa2 {[%clk 0:00:04]}  f5 {[%clk 0:00:05]} 41. Ne7 {[%clk 0:00:03]}  Qg3 {[%clk 0:00:05]} 42. Kg1 {[%clk 0:00:03]}  Bd4+ {[%clk 0:00:05]} 43. Kf1 {[%clk 0:00:03]}  Qd3+ {[%clk 0:00:04]} 44. Ke1 {[%clk 0:00:03]}  Bc3+ {[%clk 0:00:03]} 45. Kf2 {[%clk 0:00:02]}  e3+ {[%clk 0:00:04]} 46. Kf3 {[%clk 0:00:01]}  Qe4+ {[%clk 0:00:03]} 0-1


[Site "https://www.chess.com"]

[Event "Titled Tuesday Blitz June 07 Late 2022"]
[White "Cruz Mendez, Jean Marco"]
[Black "Adla, Diego"]
[WhiteFideId "3526402"]
[BlackFideId "100072"]
[WhiteElo "2064"]
[BlackElo "2377"]
[Result "1-0"]
[Round "11"]
[TimeControl "180+1"]
[Date "2022.06.07"]
[WhiteClock "0:00:22"]
[BlackClock "0:00:16"]

1. Nf3 {[%clk 0:02:59]}  d5 {[%clk 0:02:59]} 2. b3 {[%clk 0:03:00]}  a5 {[%clk 0:02:58]} 3. a3 {[%clk 0:03:00]}  Nf6 {[%clk 0:02:57]} 4. Bb2 {[%clk 0:03:00]}  g6 {[%clk 0:02:57]} 5. e3 {[%clk 0:02:59]}  Bg7 {[%clk 0:02:57]} 6. c4 {[%clk 0:02:58]}  dxc4 {[%clk 0:02:52]} 7. bxc4 {[%clk 0:02:59]}  O-O {[%clk 0:02:52]} 8. Nc3 {[%clk 0:02:58]}  b6 {[%clk 0:02:50]} 9. d4 {[%clk 0:02:58]}  Bb7 {[%clk 0:02:50]} 10. Be2 {[%clk 0:02:58]}  Nbd7 {[%clk 0:02:47]} 11. O-O {[%clk 0:02:58]}  Re8 {[%clk 0:02:46]} 12. Rc1 {[%clk 0:02:57]}  e5 {[%clk 0:02:44]} 13. Re1 {[%clk 0:02:52]}  exd4 {[%clk 0:02:39]} 14. exd4 {[%clk 0:02:53]}  Ne4 {[%clk 0:02:37]} 15. Nxe4 {[%clk 0:02:52]}  Bxe4 {[%clk 0:02:37]} 16. Bd3 {[%clk 0:02:43]}  Bxd3 {[%clk 0:02:33]} 17. Qxd3 {[%clk 0:02:44]}  Qf6 {[%clk 0:02:24]} 18. Ba1 {[%clk 0:02:40]}  Qd6 {[%clk 0:02:23]} 19. g3 {[%clk 0:02:35]}  h6 {[%clk 0:02:17]} 20. Kg2 {[%clk 0:02:31]}  a4 {[%clk 0:02:14]} 21. Qc2 {[%clk 0:02:26]}  Qxa3 {[%clk 0:02:09]} 22. h4 {[%clk 0:02:14]}  Qb3 {[%clk 0:02:07]} 23. Qxb3 {[%clk 0:02:08]}  axb3 {[%clk 0:02:07]} 24. Rxe8+ {[%clk 0:02:09]}  Rxe8 {[%clk 0:02:06]} 25. Rb1 {[%clk 0:02:10]}  Re2 {[%clk 0:02:01]} 26. Rxb3 {[%clk 0:02:07]}  Ra2 {[%clk 0:02:01]} 27. Bc3 {[%clk 0:02:06]}  Nf6 {[%clk 0:02:00]} 28. Rb2 {[%clk 0:01:54]}  Ra3 {[%clk 0:01:59]} 29. Bb4 {[%clk 0:01:54]}  Rd3 {[%clk 0:01:58]} 30. Rd2 {[%clk 0:01:44]}  Rb3 {[%clk 0:01:57]} 31. Be7 {[%clk 0:01:40]}  Ne4 {[%clk 0:01:55]} 32. Re2 {[%clk 0:01:40]}  f5 {[%clk 0:01:53]} 33. Bd8 {[%clk 0:01:31]}  c6 {[%clk 0:01:48]} 34. g4 {[%clk 0:01:17]}  b5 {[%clk 0:01:43]} 35. cxb5 {[%clk 0:01:15]}  Rxb5 {[%clk 0:01:42]} 36. gxf5 {[%clk 0:01:14]}  gxf5 {[%clk 0:01:43]} 37. Rc2 {[%clk 0:01:11]}  Rd5 {[%clk 0:01:38]} 38. Bc7 {[%clk 0:01:10]}  Bxd4 {[%clk 0:01:30]} 39. Nxd4 {[%clk 0:01:09]}  Rxd4 {[%clk 0:01:31]} 40. Rxc6 {[%clk 0:01:09]}  Rd2 {[%clk 0:01:31]} 41. Bb6 {[%clk 0:01:05]}  Kg7 {[%clk 0:01:30]} 42. Be3 {[%clk 0:01:03]}  Rd6 {[%clk 0:01:27]} 43. Rxd6 {[%clk 0:01:01]}  Nxd6 {[%clk 0:01:27]} 44. Kf3 {[%clk 0:01:02]}  Kg6 {[%clk 0:01:27]} 45. Kf4 {[%clk 0:00:59]}  h5 {[%clk 0:01:28]} 46. f3 {[%clk 0:00:57]}  Nc4 {[%clk 0:01:25]} 47. Bd4 {[%clk 0:00:55]}  Na5 {[%clk 0:01:21]} 48. Bb6 {[%clk 0:00:51]}  Nc6 {[%clk 0:01:21]} 49. Bc7 {[%clk 0:00:45]}  Nb4 {[%clk 0:01:20]} 50. Bd8 {[%clk 0:00:43]}  Nd3+ {[%clk 0:01:20]} 51. Kg3 {[%clk 0:00:43]}  Kf7 {[%clk 0:01:18]} 52. Bg5 {[%clk 0:00:41]}  Ke6 {[%clk 0:01:17]} 53. Kg2 {[%clk 0:00:41]}  Ke5 {[%clk 0:01:17]} 54. Kf1 {[%clk 0:00:40]}  f4 {[%clk 0:01:13]} 55. Ke2 {[%clk 0:00:40]}  Nc5 {[%clk 0:01:12]} 56. Kf2 {[%clk 0:00:36]}  Ne6 {[%clk 0:01:12]} 57. Be7 {[%clk 0:00:36]}  Kd4 {[%clk 0:01:10]} 58. Ke2 {[%clk 0:00:34]}  Kc3 {[%clk 0:01:09]} 59. Bf6+ {[%clk 0:00:33]}  Kc4 {[%clk 0:01:08]} 60. Be5 {[%clk 0:00:30]}  Kd5 {[%clk 0:01:03]} 61. Bf6 {[%clk 0:00:30]}  Kc5 {[%clk 0:00:59]} 62. Kd3 {[%clk 0:00:28]}  Kd5 {[%clk 0:00:58]} 63. Ke2 {[%clk 0:00:28]}  Nf8 {[%clk 0:00:53]} 64. Be7 {[%clk 0:00:27]}  Ng6 {[%clk 0:00:53]} 65. Bg5 {[%clk 0:00:28]}  Ke6 {[%clk 0:00:50]} 66. Kd3 {[%clk 0:00:28]}  Kf5 {[%clk 0:00:51]} 67. Ke2 {[%clk 0:00:26]}  Nf8 {[%clk 0:00:45]} 68. Kd3 {[%clk 0:00:20]}  Ne6 {[%clk 0:00:46]} 69. Be7 {[%clk 0:00:20]}  Nc7 {[%clk 0:00:44]} 70. Bg5 {[%clk 0:00:19]}  Nd5 {[%clk 0:00:44]} 71. Ke2 {[%clk 0:00:19]}  Nb4 {[%clk 0:00:43]} 72. Kf2 {[%clk 0:00:19]}  Ke5 {[%clk 0:00:41]} 73. Ke2 {[%clk 0:00:19]}  Nd5 {[%clk 0:00:40]} 74. Kf2 {[%clk 0:00:19]}  Kd4 {[%clk 0:00:40]} 75. Ke2 {[%clk 0:00:19]}  Nc3+ {[%clk 0:00:39]} 76. Kd2 {[%clk 0:00:19]}  Nd5 {[%clk 0:00:37]} 77. Ke2 {[%clk 0:00:20]}  Ke5 {[%clk 0:00:30]} 78. Bd8 {[%clk 0:00:19]}  Ne3 {[%clk 0:00:25]} 79. Bc7+ {[%clk 0:00:19]}  Kf5 {[%clk 0:00:25]} 80. Bd8 {[%clk 0:00:20]}  Nc2 {[%clk 0:00:21]} 81. Bg5 {[%clk 0:00:19]}  Nd4+ {[%clk 0:00:20]} 82. Kf2 {[%clk 0:00:20]}  Ne6 {[%clk 0:00:19]} 83. Be7 {[%clk 0:00:19]}  Ke5 {[%clk 0:00:19]} 84. Ke2 {[%clk 0:00:19]}  Kd4 {[%clk 0:00:19]} 85. Bf6+ {[%clk 0:00:18]}  Kc4 {[%clk 0:00:18]} 86. Bg5 {[%clk 0:00:19]}  Kc3 {[%clk 0:00:17]} 87. Bf6+ {[%clk 0:00:19]}  Kc2 {[%clk 0:00:17]} 88. Be5 {[%clk 0:00:19]}  Kb3 {[%clk 0:00:17]} 89. Kd3 {[%clk 0:00:18]}  Kb4 {[%clk 0:00:16]} 90. Ke4 {[%clk 0:00:19]}  Kc4 {[%clk 0:00:16]} 91. Bxf4 {[%clk 0:00:19]}  Kc5 {[%clk 0:00:15]} 92. Kf5 {[%clk 0:00:19]}  Kd5 {[%clk 0:00:15]} 93. Be3 {[%clk 0:00:18]}  Nd4+ {[%clk 0:00:16]} 94. Bxd4 {[%clk 0:00:18]}  Kxd4 {[%clk 0:00:16]} 95. Kg5 {[%clk 0:00:18]}  Ke3 {[%clk 0:00:16]} 96. f4 {[%clk 0:00:19]}  Ke4 {[%clk 0:00:16]} 97. f5 {[%clk 0:00:20]}  Ke5 {[%clk 0:00:16]} 98. f6 {[%clk 0:00:21]}  Ke6 {[%clk 0:00:16]} 99. Kg6 {[%clk 0:00:22]} 1-0


[Site "https://www.chess.com"]

[Event "Titled Tuesday Blitz June 07 Late 2022"]
[White "Daggupati, Balaji"]
[Black "Urazayev, Arystanbek"]
[WhiteFideId "2090759"]
[BlackFideId "13709810"]
[WhiteElo "2717"]
[BlackElo "2422"]
[Result "0-1"]
[Round "11"]
[TimeControl "180+1"]
[Date "2022.06.07"]
[WhiteClock "0:01:06"]
[BlackClock "0:00:52"]

1. e4 {[%clk 0:03:00]}  c6 {[%clk 0:02:59]} 2. d4 {[%clk 0:03:00]}  d5 {[%clk 0:03:00]} 3. Nc3 {[%clk 0:03:00]}  dxe4 {[%clk 0:03:00]} 4. Nxe4 {[%clk 0:03:01]}  Bf5 {[%clk 0:03:01]} 5. Ng3 {[%clk 0:03:01]}  Bg6 {[%clk 0:03:02]} 6. h4 {[%clk 0:03:02]}  h6 {[%clk 0:03:02]} 7. Nf3 {[%clk 0:03:03]}  e6 {[%clk 0:03:02]} 8. Ne5 {[%clk 0:03:03]}  Bh7 {[%clk 0:03:02]} 9. Bd3 {[%clk 0:03:03]}  Bxd3 {[%clk 0:03:02]} 10. Qxd3 {[%clk 0:03:04]}  Nd7 {[%clk 0:02:59]} 11. f4 {[%clk 0:03:04]}  Bb4+ {[%clk 0:02:49]} 12. Bd2 {[%clk 0:02:59]}  Bxd2+ {[%clk 0:02:49]} 13. Qxd2 {[%clk 0:03:00]}  Ngf6 {[%clk 0:02:48]} 14. O-O-O {[%clk 0:02:59]}  O-O {[%clk 0:02:44]} 15. Kb1 {[%clk 0:02:54]}  a5 {[%clk 0:02:44]} 16. Qe2 {[%clk 0:02:53]}  a4 {[%clk 0:02:41]} 17. Ne4 {[%clk 0:02:53]}  Nxe4 {[%clk 0:02:38]} 18. Qxe4 {[%clk 0:02:54]}  a3 {[%clk 0:02:39]} 19. b3 {[%clk 0:02:53]}  Nf6 {[%clk 0:02:38]} 20. Qf3 {[%clk 0:02:52]}  Qd5 {[%clk 0:02:38]} 21. c4 {[%clk 0:02:42]}  Qxf3 {[%clk 0:02:31]} 22. Nxf3 {[%clk 0:02:43]}  Nh5 {[%clk 0:02:30]} 23. g4 {[%clk 0:02:26]}  Nxf4 {[%clk 0:02:29]} 24. Ne5 {[%clk 0:02:26]}  f6 {[%clk 0:02:21]} 25. Nd7 {[%clk 0:02:24]}  Rfd8 {[%clk 0:02:17]} 26. Nc5 {[%clk 0:02:18]}  b6 {[%clk 0:02:17]} 27. Na4 {[%clk 0:02:14]}  b5 {[%clk 0:02:02]} 28. cxb5 {[%clk 0:02:15]}  cxb5 {[%clk 0:02:03]} 29. Nc5 {[%clk 0:02:16]}  Ne2 {[%clk 0:01:56]} 30. Nxe6 {[%clk 0:02:09]}  Nc3+ {[%clk 0:01:32]} 31. Kc2 {[%clk 0:01:46]}  Rdc8 {[%clk 0:01:26]} 32. Ra1 {[%clk 0:01:35]}  Nxa2+ {[%clk 0:01:18]} 33. Kd2 {[%clk 0:01:35]}  Nc3 {[%clk 0:01:08]} 34. b4 {[%clk 0:01:35]}  Ne4+ {[%clk 0:00:59]} 35. Kd3 {[%clk 0:01:32]}  Nf2+ {[%clk 0:00:59]} 36. Kd2 {[%clk 0:01:29]}  Nxh1 {[%clk 0:00:59]} 37. Rxh1 {[%clk 0:01:29]}  Rc4 {[%clk 0:00:59]} 38. d5 {[%clk 0:01:28]}  a2 {[%clk 0:00:57]} 39. Ra1 {[%clk 0:01:25]}  Ra6 {[%clk 0:00:53]} 40. Nc5 {[%clk 0:01:22]}  Rd6 {[%clk 0:00:53]} 41. Rxa2 {[%clk 0:01:18]}  Rxd5+ {[%clk 0:00:54]} 42. Ke3 {[%clk 0:01:18]}  Rxb4 {[%clk 0:00:54]} 43. Ra8+ {[%clk 0:01:14]}  Kh7 {[%clk 0:00:53]} 44. Na6 {[%clk 0:01:11]}  Rxg4 {[%clk 0:00:52]} 45. Nc7 {[%clk 0:01:11]}  Re5+ {[%clk 0:00:52]} 46. Kf3 {[%clk 0:01:11]}  Rxh4 {[%clk 0:00:53]} 47. Na6 {[%clk 0:01:06]}  Ra4 {[%clk 0:00:52]} 0-1


[Site "https://www.chess.com"]

[Event "Titled Tuesday Blitz June 07 Late 2022"]
[White "Hansen, Eric"]
[Black "Dubov, Daniil"]
[WhiteFideId "2606771"]
[BlackFideId "24126055"]
[WhiteElo "2568"]
[BlackElo "2791"]
[Result "0-1"]
[Round "11"]
[TimeControl "180+1"]
[Date "2022.06.07"]
[WhiteClock "0:00:01"]
[BlackClock "0:00:34"]

1. e4 {[%clk 0:03:00]}  c5 {[%clk 0:02:58]} 2. Nf3 {[%clk 0:03:00]}  d6 {[%clk 0:02:59]} 3. Bb5+ {[%clk 0:02:59]}  Nc6 {[%clk 0:02:56]} 4. O-O {[%clk 0:02:55]}  Bd7 {[%clk 0:02:56]} 5. Re1 {[%clk 0:02:54]}  a6 {[%clk 0:02:54]} 6. Bf1 {[%clk 0:02:49]}  e5 {[%clk 0:02:54]} 7. c3 {[%clk 0:02:49]}  g5 {[%clk 0:02:53]} 8. d4 {[%clk 0:02:32]}  g4 {[%clk 0:02:53]} 9. Nfd2 {[%clk 0:02:33]}  cxd4 {[%clk 0:02:45]} 10. Nb3 {[%clk 0:02:32]}  Bg7 {[%clk 0:02:25]} 11. Na3 {[%clk 0:02:27]}  h5 {[%clk 0:02:19]} 12. cxd4 {[%clk 0:02:13]}  exd4 {[%clk 0:02:10]} 13. Nc4 {[%clk 0:02:09]}  Be6 {[%clk 0:02:08]} 14. Bf4 {[%clk 0:02:05]}  Be5 {[%clk 0:02:07]} 15. Qd2 {[%clk 0:02:05]}  h4 {[%clk 0:02:06]} 16. Rad1 {[%clk 0:01:57]}  Kf8 {[%clk 0:02:05]} 17. Bg5 {[%clk 0:01:31]}  f6 {[%clk 0:01:56]} 18. Bf4 {[%clk 0:01:31]}  b5 {[%clk 0:01:56]} 19. Na3 {[%clk 0:01:21]}  Nge7 {[%clk 0:01:56]} 20. Rc1 {[%clk 0:01:14]}  Rc8 {[%clk 0:01:54]} 21. Nc2 {[%clk 0:00:59]}  Ng6 {[%clk 0:01:52]} 22. Bh6+ {[%clk 0:00:50]}  Kf7 {[%clk 0:01:51]} 23. Ncxd4 {[%clk 0:00:49]}  Nxd4 {[%clk 0:01:48]} 24. Nxd4 {[%clk 0:00:49]}  Bxd4 {[%clk 0:01:41]} 25. Rxc8 {[%clk 0:00:22]}  Qxc8 {[%clk 0:01:25]} 26. Qxd4 {[%clk 0:00:21]}  Rxh6 {[%clk 0:01:25]} 27. Qxd6 {[%clk 0:00:21]}  Qd7 {[%clk 0:01:24]} 28. Qxa6 {[%clk 0:00:20]}  g3 {[%clk 0:01:24]} 29. Qb6 {[%clk 0:00:16]}  Qd2 {[%clk 0:01:14]} 30. Qe3 {[%clk 0:00:10]}  gxf2+ {[%clk 0:01:00]} 31. Qxf2 {[%clk 0:00:10]}  Qxf2+ {[%clk 0:01:01]} 32. Kxf2 {[%clk 0:00:11]}  Bxa2 {[%clk 0:01:01]} 33. Bxb5 {[%clk 0:00:10]}  Ne5 {[%clk 0:01:00]} 34. Ra1 {[%clk 0:00:10]}  Be6 {[%clk 0:01:00]} 35. Ra7+ {[%clk 0:00:11]}  Kg6 {[%clk 0:00:58]} 36. Ke3 {[%clk 0:00:06]}  Rh8 {[%clk 0:00:42]} 37. Ra6 {[%clk 0:00:06]}  Rb8 {[%clk 0:00:39]} 38. Be2 {[%clk 0:00:05]}  Rb3+ {[%clk 0:00:35]} 39. Kf4 {[%clk 0:00:04]}  Rxb2 {[%clk 0:00:35]} 40. Bf1 {[%clk 0:00:01]}  Rf2+ {[%clk 0:00:34]} 0-1


[Site "https://www.chess.com"]